bitfinex-derivatives/quotes_ETHF0:USTF0_20250403
["timestamp","ask_amount","ask_price","bid_price","bid_amount"]
[1743694775975,1.13368933,1778.1,1778.0,4.33308]
[1743694776276,0.00842933,1778.1,1778.0,5.83238]
[1743694778972,1.51722933,1778.1,1778.0,5.83238]
[1743694779378,2.64244933,1778.1,1778.0,5.83238]
[1743694780277,2.64244933,1778.1,1778.0,4.7071]
[1743694780684,2.64244933,1778.1,1778.0,3.2078]
[1743694782483,6.98344933,1778.1,1778.0,3.2078]
[1743694783879,5.85822933,1778.1,1778.0,4.33308]
[1743694784184,1.51722933,1778.1,1778.0,4.33308]
[1743694784887,0.00842933,1778.1,1778.0,4.33308]
[1743694785386,1.13364933,1778.1,1778.0,3.2078]
[1743694786186,0.00842933,1778.1,1778.0,3.2078]
[1743694786382,1.13364933,1778.1,1778.0,3.2078]
[1743694786587,2.65814933,1778.1,1778.0,3.2078]
[1743694790389,2.65814933,1778.1,1778.0,4.33308]
[1743694790786,1.53292933,1778.1,1778.0,4.33308]
[1743694790986,0.00842933,1778.1,1778.0,4.33308]
[1743694791388,1.13364933,1778.1,1778.0,4.33308]
[1743694791681,0.00842933,1778.1,1778.0,4.33308]
[1743694792094,1.13364933,1778.1,1778.0,4.33308]
[1743694792295,0.00842933,1778.1,1778.0,4.33308]
[1743694792496,0.00842933,1778.1,1778.0,6.83308]
[1743694792691,2.57712,1778.3,1778.0,6.83308]
[1743694792692,1.12514,1778.3,1778.0,6.83308]
[1743694792887,1.12514,1778.3,1778.2,4.33291]
[1743694794296,2.55149933,1778.4,1778.3,1.12509]
[1743694794489,2.55149933,1778.4,1778.3,2.54499]
[1743694794888,1.13349933,1778.4,1778.3,2.54499]
[1743694795495,1.13349933,1778.4,1778.3,1.4199]
[1743694795697,1.12509,1778.3,1778.2,3.2078]
[1743694795897,1.12509,1778.3,1778.1,1.13362933]
[1743694795898,1.12516,1778.2,1778.1,0.00842933]
[1743694796196,1.86996,1778.2,1778.1,1.13364933]
[1743694796402,3.25476,1778.2,1778.1,1.13364933]
[1743694796594,6.15803,1778.3,1778.2,1.12516]
[1743694796896,6.4177,1778.3,1778.2,4.33296]
[1743694797106,4.336,1778.3,1778.2,4.33296]
[1743694797393,1.87828933,1778.4,1778.3,1.12509]
[1743694797598,1.87828933,1778.4,1778.3,2.52039]
[1743694797797,2.13802933,1778.4,1778.3,2.52039]
[1743694798001,0.00842933,1778.4,1778.3,2.52039]
[1743694798202,0.00842933,1778.4,1778.3,3.06372221]
[1743694798499,0.00842933,1778.4,1778.3,3.76065152]
[1743694798801,1.12489,1778.7,1778.6,1.12484]
[1743694799002,2.50969,1778.7,1778.5,1.3953]
[1743694799201,1.12497,1778.5,1778.4,4.33279]
[1743694799404,1.12497,1778.5,1778.4,4.87644939]
[1743694799596,1.12497,1778.5,1778.4,6.30424939]
[1743694799793,1.12497,1778.5,1778.4,3.2078]
[1743694800396,5.45997,1778.5,1778.4,3.2078]
[1743694801304,1.12516,1778.2,1778.1,9.04022933]
[1743694801509,1.12515,1778.3,1778.2,1.12513]
[1743694801712,1.12516,1778.2,1778.1,4.34139933]
[1743694801999,1.12516,1778.2,1778.1,5.58502428]
[1743694802302,1.12516,1778.2,1778.1,4.46071135]
[1743694802906,1.12516,1778.2,1778.1,3.76107555]
[1743694803107,1.12516,1778.2,1778.1,4.46073455]
[1743694803608,1.12516,1778.2,1778.1,3.76107555]
[1743694803799,1.12516,1778.2,1778.1,4.46144522]
[1743694805408,5.45916,1778.2,1778.1,3.76233621]
[1743694805598,5.45916,1778.2,1778.1,0.00842933]
[1743694806108,5.45916,1778.2,1778.1,4.46294284]
[1743694806307,5.45916,1778.2,1778.1,5.28388907]
[1743694806497,5.45916,1778.2,1778.1,3.76228907]
[1743694806700,5.45916,1778.2,1778.1,3.21622933]
[1743694807406,5.45916,1778.2,1778.1,0.00842933]
[1743694809205,5.45916,1778.2,1778.1,1.25503429]
[1743694809512,5.45916,1778.2,1778.1,0.00842933]
[1743694809811,5.45916,1778.2,1778.1,1.25502619]
[1743694810199,1.5115,1778.4,1778.1,1.25502585]
[1743694810399,1.12509,1778.3,1778.2,4.45439652]
[1743694810604,2.65469,1778.3,1778.2,0.54609539]
[1743694810802,1.12516,1778.2,1778.1,3.21622933]
[1743694811010,2.65476,1778.2,1778.1,0.55479457]
[1743694811308,2.65476,1778.2,1778.1,4.46311837]
[1743694811710,1.5115,1778.4,1778.1,4.46311837]
[1743694812014,1.5115,1778.4,1778.2,3.75878904]
[1743694812015,1.12513,1778.3,1778.2,3.75878904]
[1743694812215,1.12513,1778.3,1778.2,6.96658904]
[1743694812607,1.12513,1778.3,1778.2,5.84148904]
[1743694812808,2.65263,1778.3,1778.2,6.96664904]
[1743694813002,0.00561958,1778.6,1778.2,8.34141487]
[1743694813217,0.00561958,1778.6,1778.5,4.33277]
[1743694813515,0.00561958,1778.6,1778.5,5.57958487]
[1743694813715,0.00561958,1778.6,1778.5,46.37958487]
[1743694813915,0.7189,1779.0,1778.8,1.12472]
[1743694814112,2.2398,1779.1,1779.0,1.12465]
[1743694814310,1.12454,1779.2,1779.1,1.12453]
[1743694814508,1.12454,1779.2,1779.1,4.45182486]
[1743694814710,1.12459,1779.1,1779.0,1.4506]
[1743694815008,1.12478,1778.8,1778.7,3.2078]
[1743694815208,1.12478,1778.8,1778.7,4.45224078]
[1743694815616,1.12478,1778.8,1778.7,5.90284078]
[1743694815909,1.12478,1778.8,1778.7,4.45224078]
[1743694816306,1.12478,1778.8,1778.7,5.57708078]
[1743694816508,1.12478,1778.8,1778.7,5.35794669]
[1743694816704,1.12478,1778.8,1778.7,5.20309699]
[1743694816907,1.12478,1778.8,1778.7,3.75249699]
[1743694817812,1.12478,1778.8,1778.7,3.75240526]
[1743694818207,5.7659,1779.0,1778.7,5.84095522]
[1743694818412,1.12471,1778.9,1778.8,1.3896]
[1743694818615,1.12478,1778.8,1778.7,3.2078]
[1743694818911,5.7659,1779.0,1778.7,4.45089601]
[1743694819219,1.12471,1778.9,1778.8,1.3896]
[1743694819619,2.65721,1778.9,1778.8,1.3896]
[1743694819917,1.12478,1778.8,1778.7,3.2078]
[1743694820217,2.65728,1778.8,1778.7,3.2078]
[1743694821214,1.5325,1778.8,1778.7,4.33264]
[1743694821411,2.65728,1778.8,1778.7,4.33264]
[1743694821720,1.5325,1778.8,1778.7,4.87613257]
[1743694822215,1.5325,1778.8,1778.7,4.87615611]
[1743694822418,2.65728,1778.8,1778.7,4.33264]
[1743694822814,1.5325,1778.8,1778.7,4.33264]
[1743694823011,1.5325,1778.8,1778.7,4.87605839]
[1743694823319,1.12471,1778.9,1778.8,1.12478]
[1743694823518,2.51823,1779.1,1779.0,1.12465]
[1743694823720,1.12463,1779.1,1779.0,4.33245]
[1743694824017,5.7216,1779.2,1779.0,3.2078]
[1743694824216,6.84619,1779.2,1779.1,2.57259]
[1743694824616,6.84619,1779.2,1779.0,4.33243]
[1743694824812,2.51819,1779.1,1779.0,3.2078]
[1743694825215,2.51819,1779.1,1779.0,4.33245]
[1743694825618,1.12465,1779.0,1778.9,1.448]
[1743694825822,1.12484,1778.7,1778.6,0.00842933]
[1743694826129,5.45284,1778.7,1778.6,0.00842933]
[1743694826514,6.89124,1778.7,1778.6,0.00842933]
[1743694827822,4.328,1778.7,1778.6,4.34112933]
[1743694828024,5.45284,1778.7,1778.6,5.73962933]
[1743694828420,5.45284,1778.7,1778.6,4.61472933]
[1743694828929,5.45284,1778.7,1778.6,0.00842933]
[1743694831229,2.56323,1778.8,1778.6,0.00842933]
[1743694831423,1.4384,1778.8,1778.7,1.12484]
[1743694831732,1.12484,1778.7,1778.6,2.63537933]
[1743694832032,1.12484,1778.7,1778.6,43.43538933]
[1743694832631,1.12479,1778.8,1778.7,1.12478]
[1743694832834,1.12479,1778.8,1778.7,5.84368]
[1743694833529,2.81118,1779.3,1778.7,7.53096]
[1743694833731,2.81118,1779.3,1778.6,40.80842933]
[1743694833732,4.326,1779.2,1779.1,3.2078]
[1743694833928,5.45052,1779.3,1779.2,1.12452]
[1743694834225,5.45052,1779.3,1779.2,1.5111]
[1743694834631,6.96022,1779.3,1779.2,1.5111]
[1743694835632,6.96021,1779.3,1779.2,1.12452]
[1743694835931,1.12446,1779.3,1779.2,2.50947]
[1743694836333,1.12452,1779.2,1779.1,3.2078]
[1743694836530,2.54442,1779.2,1779.1,4.5928]
[1743694837131,2.54442,1779.2,1779.1,3.2078]
[1743694837424,1.12465,1779.0,1778.9,3.2078]
[1743694837627,5.44965,1779.0,1778.9,3.2078]
[1743694837831,7.56835,1779.0,1778.9,3.2078]
[1743694838034,1.12484,1778.7,1778.6,4.60122933]
[1743694838224,5.44884,1778.7,1778.6,3.21622933]
[1743694839231,6.15794,1778.7,1778.6,3.21622933]
[1743694840828,6.15794,1778.7,1778.6,0.00842933]
[1743694841033,1.12497,1778.5,1778.4,3.2078]
[1743694841535,1.12522,1778.1,1778.0,44.0078]
[1743694841729,5.44922,1778.1,1778.0,44.55364163]
[1743694842127,5.44922,1778.1,1778.0,44.0078]
[1743694842533,6.85172,1778.1,1778.0,40.8]
[1743694843530,1.12528,1778.0,1777.9,0.00842933]
[1743694843730,2.52778,1778.0,1777.9,0.00842933]
[1743694843931,2.52778,1778.0,1777.9,40.80842933]
[1743694844233,1.12572,1777.4,1777.2,3.2078]
[1743694844541,1.12566,1777.4,1777.3,1.36769891]
[1743694844731,1.12573,1777.3,1777.2,3.2078]
[1743694845031,0.7609,1777.5,1777.3,1.12573]
[1743694845235,1.8865,1777.5,1777.4,40.8]
[1743694845537,1.8865,1777.5,1777.4,44.0078]
[1743694847537,1.1256,1777.5,1777.4,45.3912]
[1743694847733,1.1256,1777.5,1777.4,44.0078]
[1743694848730,1.1256,1777.5,1777.4,45.4559]
[1743694848930,1.1256,1777.5,1777.4,40.8]
[1743694849335,3.6256,1777.5,1777.4,40.8]
[1743694849551,1.12573,1777.3,1777.2,3.21622933]
[1743694849741,5.44973,1777.3,1777.2,3.21622933]
[1743694849942,5.44973,1777.3,1777.2,44.01622933]
[1743694850842,4.324,1777.3,1777.2,45.14201933]
[1743694851140,4.324,1777.3,1777.2,46.57431933]
[1743694851141,5.44973,1777.3,1777.2,46.57431933]
[1743694851837,0.7318,1777.4,1777.3,1.12573]
[1743694852043,1.12566,1777.4,1777.3,1.4323]
[1743694852436,5.44965,1777.5,1777.3,2.558]
[1743694852744,1.12566,1777.4,1777.3,1.4323]
[1743694853543,5.44865,1777.5,1777.3,1.4323]
[1743694853835,4.323,1777.5,1777.4,4.33346]
[1743694854242,1.1255,1777.7,1777.4,3.2078]
[1743694854545,5.44845,1777.8,1777.7,1.12547]
[1743694854738,1.12541,1777.8,1777.7,1.4584]
[1743694855445,1.12547,1777.7,1777.6,3.2078]
[1743694855645,1.12546,1777.8,1777.6,4.33334]
[1743694855841,1.12541,1777.8,1777.7,1.4584]
[1743694856445,11.07266,1777.9,1777.5,4.33337]
[1743694856647,1.12554,1777.6,1777.5,3.2078]
[1743694856843,1.12554,1777.6,1777.5,5.7918]
[1743694857139,1.12554,1777.6,1777.5,4.6662]
[1743694857345,1.5204,1777.7,1777.5,5.79174]
[1743694857546,1.5204,1777.7,1777.6,2.52414]
[1743694857547,1.12547,1777.7,1777.6,2.52414]
[1743694857740,2.2742,1778.0,1777.6,4.21244]
[1743694857946,3.39948,1778.0,1777.9,3.2078]
[1743694858541,1.12541,1777.8,1777.7,1.3986]
[1743694859751,1.12547,1777.7,1777.6,3.2078]
[1743694859945,2.63417,1777.7,1777.6,3.2078]
[1743694860847,1.12547,1777.7,1777.6,3.2078]
[1743694861047,4.322,1777.8,1777.7,1.12547]
[1743694861237,1.12532,1778.0,1777.9,1.12531]
[1743694861445,1.12528,1778.0,1777.9,4.33308]
[1743694861644,1.12525,1778.1,1778.0,1.12526]
[1743694861845,1.13361933,1778.2,1778.1,1.12522]
[1743694862046,1.12522,1778.1,1778.0,2.60393]
[1743694862443,1.12522,1778.1,1778.0,1.4787]
[1743694863250,0.77142933,1778.2,1778.0,2.60396]
[1743694863450,1.12522,1778.1,1778.0,2.60396]
[1743694863645,0.00842933,1778.2,1778.1,1.12522]
[1743694864145,0.00842933,1778.2,1778.1,4.33102]
[1743694864547,2.81189,1778.9,1778.1,49.32038878]
[1743694864740,1.12478,1778.8,1778.7,3.2078]
[1743694865047,1.12474,1778.9,1778.8,1.12475]
[1743694865250,1.12447,1779.3,1779.2,1.12449]
[1743694865454,1.3942,1779.4,1779.2,3.2078]
[1743694865649,2.51864,1779.4,1779.2,3.2078]
[1743694865857,1.12444,1779.4,1779.3,1.12446]
[1743694866049,0.00842933,1779.5,1779.4,1.1244]
[1743694866254,0.00842933,1779.5,1779.4,4.3322]
[1743694866751,0.00842933,1779.5,1779.4,45.1322]
[1743694867555,2.57234,1779.9,1779.7,1.12418]
[1743694867757,2.57234,1779.9,1779.8,3.2078]
[1743694868452,1.12421,1779.7,1779.6,3.2078]
[1743694868755,1.4482,1779.9,1779.6,3.2078]
[1743694869053,1.12421,1779.7,1779.6,4.33207]
[1743694869255,1.12421,1779.7,1779.6,3.2078]
[1743694869450,1.4482,1779.9,1779.6,4.33207]
[1743694869661,2.57228,1779.9,1779.8,3.2078]
[1743694870359,1.12408,1779.9,1779.8,3.2078]
[1743694870861,1.3993,1780.0,1779.8,3.2078]
[1743694871058,1.12408,1779.9,1779.8,3.2078]
[1743694871263,1.12404,1780.0,1779.8,4.33191]
[1743694871855,1.12402,1780.0,1779.9,1.12405]
[1743694872055,1.12407,1780.0,1779.8,4.33191]
[1743694872255,1.12407,1780.0,1779.8,4.31221109]
[1743694872456,1.12406,1780.0,1779.8,4.31220109]
[1743694872656,1.12406,1780.0,1779.8,4.31221109]
[1743694872959,1.3993,1780.2,1779.8,4.31221109]
[1743694873161,1.12395,1780.1,1780.0,3.2078]
[1743694874461,1.12408,1779.9,1779.8,3.2078]
[1743694874661,1.12408,1779.9,1779.8,3.18810109]
[1743694875758,5.7645,1780.3,1780.0,1.12401]
[1743694876061,1.12392,1780.2,1780.0,3.2078]
[1743694876274,1.12395,1780.1,1780.0,3.2078]
[1743694877178,2.57632,1780.2,1780.0,5.83716]
[1743694877379,1.4524,1780.2,1780.1,1.12395]
[1743694877580,1.4524,1780.2,1780.0,4.7132]
[1743694877774,2.57631,1780.2,1780.0,5.83718]
[1743694878172,1.12395,1780.1,1780.0,5.83718]
[1743694878472,1.4524,1780.2,1780.0,5.83718]
[1743694878473,2.57634,1780.2,1780.0,5.83718]
[1743694878672,1.4524,1780.2,1780.0,4.7132]
[1743694878980,1.12395,1780.1,1780.0,4.7132]
[1743694879177,5.7664,1780.2,1779.8,4.33191]
[1743694879479,1.12411,1779.9,1779.7,5.71317]
[1743694879774,1.12408,1780.0,1779.9,1.12408]
[1743694879973,1.10438109,1780.0,1779.9,4.33188]
[1743694880174,1.12397,1780.1,1780.0,1.124]
[1743694880476,1.12402,1780.0,1779.9,3.2078]
[1743694880878,1.12408,1779.9,1779.8,4.33192]
[1743694881067,1.12408,1779.9,1779.8,3.2078]
[1743694881269,2.55706,1780.0,1779.8,3.2078]
[1743694881475,1.12406,1780.0,1779.9,1.12408]
[1743694881679,1.10436109,1780.0,1779.9,1.12408]
[1743694881870,1.10436109,1780.0,1779.9,41.92408]
[1743694882275,1.124,1780.1,1780.0,1.12399]
[1743694882476,1.124,1780.1,1780.0,3.2078]
[1743694882671,1.12402,1780.0,1779.9,40.8]
[1743694883181,1.12402,1780.0,1779.9,43.31518]
[1743694883384,1.12402,1780.0,1779.9,42.1911]
[1743694883577,1.12402,1780.0,1779.9,43.31518]
[1743694883783,2.55691,1780.2,1779.9,42.1911]
[1743694883984,2.55689,1780.2,1780.1,3.2078]
[1743694884378,1.12414,1779.8,1779.7,3.2078]
[1743694884584,1.12414,1779.8,1779.7,3.18810109]
[1743694884778,1.12414,1779.8,1779.7,45.11231109]
[1743694885084,2.54374,1779.8,1779.7,43.98810109]
[1743694885485,2.54374,1779.8,1779.7,40.8]
[1743694885680,3.24204,1779.8,1779.7,40.8]
[1743694885886,3.24204,1779.8,1779.7,44.0078]
[1743694886185,2.81073,1779.6,1779.2,3.2078]
[1743694886376,5.7316,1779.5,1779.2,5.85187]
[1743694886579,1.1244,1779.4,1779.3,40.8]
[1743694886776,2.544,1779.4,1779.3,40.8]
[1743694886985,3.2374,1779.4,1779.3,40.8]
[1743694888177,5.7374,1779.4,1779.3,40.8]
[1743694888681,5.7374,1779.4,1779.1,0.00842933]
[1743694888682,1.12452,1779.2,1779.1,0.00842933]
[1743694888983,5.43652,1779.2,1779.1,0.00842933]
[1743694889179,7.93652,1779.2,1779.1,0.00842933]
[1743694889378,9.31772,1779.2,1779.1,0.00842933]
[1743694891882,6.81772,1779.2,1779.1,0.00842933]
[1743694892981,9.31772,1779.2,1779.1,0.00842933]
[1743694893292,1.1249,1778.6,1778.5,4.702]
[1743694893481,4.312,1778.7,1778.5,5.82697]
[1743694893684,1.1249,1778.6,1778.5,5.82697]
[1743694893985,1.5072,1778.6,1778.5,5.82697]
[1743694894180,4.312,1778.7,1778.6,1.1249]
[1743694894386,5.43683,1778.8,1778.6,41.92485]
[1743694894582,5.43683,1778.8,1778.7,5.71814]
[1743694894583,5.44525933,1778.8,1778.7,5.71814]
[1743694894779,4.32042933,1778.8,1778.7,5.71814]
[1743694895282,5.44520933,1778.8,1778.7,2.51034]
[1743694895483,5.44520933,1778.8,1778.7,5.71814]
[1743694895685,5.44520933,1778.8,1778.7,3.2078]
[1743694895879,4.32042933,1778.8,1778.7,4.33264]
[1743694896083,4.32042933,1778.8,1778.7,5.71814]
[1743694896284,5.44520933,1778.8,1778.7,5.71814]
[1743694896486,4.32042933,1778.8,1778.7,5.71814]
[1743694897088,0.00842933,1778.8,1778.7,5.71814]
[1743694897294,0.00842933,1778.8,1778.7,8.76063502]
[1743694897590,1.12464,1779.1,1779.0,1.12465]
[1743694897893,2.81093,1779.5,1779.0,6.01939]
[1743694897894,6.82935,1779.4,1779.0,6.01939]
[1743694898089,4.311,1779.4,1779.2,3.2078]
[1743694898390,2.51836,1779.3,1779.2,3.2078]
[1743694898984,1.12444,1779.4,1779.2,3.2078]
[1743694899184,1.12444,1779.4,1779.3,1.5219]
[1743694899389,2.51834,1779.4,1779.3,1.5219]
[1743694899889,2.51834,1779.4,1779.3,2.64636]
[1743694900790,2.51834,1779.4,1779.3,1.5219]
[1743694900986,2.51834,1779.4,1779.3,2.64636]
[1743694901396,2.51834,1779.4,1779.3,1.5219]
[1743694901695,2.51834,1779.4,1779.3,2.64636]
[1743694902491,2.5183,1779.4,1779.3,2.64636]
[1743694903391,1.3939,1779.4,1779.3,2.64636]
[1743694903596,2.56498,1779.5,1779.4,1.1244]
[1743694903895,1.12412,1779.9,1779.8,1.12411]
[1743694904484,1.12412,1779.9,1779.8,1.4809]
[1743694904699,1.12414,1779.8,1779.7,3.21622933]
[1743694904899,1.416,1779.9,1779.7,4.34043933]
[1743694905090,2.54012,1779.9,1779.7,3.21622933]
[1743694905491,1.83866,1780.0,1779.9,1.12408]
[1743694905793,1.12408,1779.9,1779.8,42.2809]
[1743694905993,1.12408,1779.9,1779.8,42.26120109]
[1743694906398,1.12408,1779.9,1779.8,43.38530109]
[1743694906596,1.12408,1779.9,1779.8,40.8]
[1743694906790,2.61038,1779.9,1779.8,40.8]
[1743694907497,1.12414,1779.8,1779.7,3.21622933]
[1743694907699,2.61044,1779.8,1779.7,0.00842933]
[1743694907895,3.35584,1779.8,1779.7,0.00842933]
[1743694908892,3.35584,1779.8,1779.2,0.7147]
[1743694908893,7.9395,1779.8,1779.1,3.2078]
[1743694909097,1.12465,1779.0,1778.9,4.6549]
[1743694909598,1.12465,1779.0,1778.9,1.4471]
[1743694910195,5.44103933,1779.1,1778.9,1.4471]
[1743694910393,4.31642933,1779.1,1778.9,2.57176]
[1743694910593,5.44105933,1779.1,1779.0,4.33245]
[1743694910794,5.44105933,1779.1,1779.0,4.6549]
[1743694910995,5.44101933,1779.1,1779.0,5.77955]
[1743694911304,4.31642933,1779.1,1779.0,5.77955]
[1743694911499,5.44101933,1779.1,1779.0,5.77955]
[1743694911802,4.31642933,1779.1,1779.0,5.77955]
[1743694912200,5.44101933,1779.1,1779.0,5.77955]
[1743694912400,5.44101933,1779.1,1779.0,3.2078]
[1743694912603,6.88665933,1779.1,1778.9,1.12466]
[1743694912798,1.12471,1778.9,1778.8,4.60272933]
[1743694913105,5.76202933,1779.1,1778.8,4.60272933]
[1743694913408,1.12471,1778.9,1778.8,4.60272933]
[1743694913610,1.12471,1778.9,1778.8,5.72750933]
[1743694913997,1.12471,1778.9,1778.8,4.60272933]
[1743694915297,8.57352933,1779.1,1779.0,1.12465]
[1743694915298,1.13302933,1779.1,1779.0,1.12465]
[1743694915498,5.44101933,1779.1,1779.0,3.2078]
[1743694915798,1.12465,1779.0,1778.9,1.12468]
[1743694915997,5.44106933,1779.1,1779.0,1.12465]
[1743694916198,5.44101933,1779.1,1779.0,4.33245]
[1743694916406,4.31642933,1779.1,1779.0,4.33245]
[1743694917209,4.31642933,1779.1,1779.0,4.87550882]
[1743694917708,4.31642933,1779.1,1779.0,4.33245]
[1743694917910,4.31642933,1779.1,1779.0,4.87543643]
[1743694918108,0.00842933,1779.1,1779.0,5.57363785]
[1743694918404,1.12443,1779.4,1779.3,1.12439]
[1743694918598,5.43137,1779.5,1779.4,1.1244]
[1743694918907,2.8112,1779.3,1779.0,1.12459]
[1743694919205,1.12465,1779.0,1778.9,1.12462]
[1743694919403,1.12465,1779.0,1778.9,5.57357866]
[1743694919600,1.12461,1779.1,1779.0,1.12459]
[1743694919801,1.12461,1779.1,1779.0,1.66758878]
[1743694920005,1.12461,1779.1,1779.0,1.12459]
[1743694920201,1.12461,1779.1,1779.0,1.66764253]
[1743694920601,4.307,1779.2,1779.1,1.12459]
[1743694920805,1.12452,1779.3,1779.2,1.12448]
[1743694921109,1.12432,1779.6,1779.5,1.12429]
[1743694921320,1.12432,1779.6,1779.5,4.33209]
[1743694921497,1.12432,1779.6,1779.5,3.2078]
[1743694921698,1.12432,1779.6,1779.5,4.33213]
[1743694922102,1.12432,1779.6,1779.5,3.2078]
[1743694922707,2.65542,1779.6,1779.5,3.2078]
[1743694922909,2.65542,1779.6,1779.5,4.33213]
[1743694923111,2.65542,1779.6,1779.5,3.2078]
[1743694924305,1.5311,1779.6,1779.5,4.33213]
[1743694924603,1.84226,1779.7,1779.6,1.12427]
[1743694925106,4.305,1779.8,1779.7,1.12421]
[1743694925314,4.305,1779.8,1779.7,4.33201]
[1743694926711,5.8107,1780.0,1779.9,1.12408]
[1743694927010,8.60109109,1780.0,1779.7,3.2078]
[1743694927213,1.12408,1779.9,1779.8,0.00842933]
[1743694928109,3.62408,1779.9,1779.8,0.00842933]
[1743694929710,3.62408,1779.9,1779.8,9.33e-06]
[1743694930015,1.1244,1779.4,1779.3,3.2078]
[1743694930215,5.4284,1779.4,1779.3,3.2078]
[1743694930415,5.4284,1779.4,1779.2,2.53331]
[1743694930416,1.12446,1779.3,1779.2,1.4088]
[1743694930619,2.65306,1779.3,1779.2,1.4088]
[1743694930916,1.12454,1779.2,1779.1,4.34077933]
[1743694931112,2.65314,1779.2,1779.1,3.21622933]
[1743694932119,2.65314,1779.2,1779.1,0.00842933]
[1743694932319,5.15314,1779.2,1779.1,0.00842933]
[1743694933116,2.65314,1779.2,1779.1,0.00842933]
[1743694933521,2.65314,1779.2,1779.1,1.13301933]
[1743694933722,2.65314,1779.2,1779.1,0.00842933]
[1743694933920,2.65314,1779.2,1779.1,1.41602933]
[1743694934120,2.65314,1779.2,1779.1,0.00842933]
[1743694935214,2.65312,1779.2,1779.1,2.54061933]
[1743694935917,2.65312,1779.2,1779.1,0.00842933]
[1743694936612,5.15312,1779.2,1779.1,0.00842933]
[1743694936922,8.36092,1779.2,1779.1,0.00842933]
[1743694937421,1.12484,1778.7,1778.6,4.33269]
[1743694937716,4.0286,1779.2,1778.6,3.75107362]
[1743694937717,4.303,1778.8,1778.6,3.75107362]
[1743694937924,5.4278,1778.8,1778.7,43.3376]
[1743694938223,4.303,1778.8,1778.7,43.88082089]
[1743694938822,5.42778,1778.8,1778.7,42.2128]
[1743694939312,5.42778,1778.8,1778.7,43.33764]
[1743694939514,4.303,1778.8,1778.7,43.33764]
[1743694939709,4.303,1778.8,1778.7,43.88078946]
[1743694939912,0.00842933,1778.9,1778.8,1.12478]
[1743694940117,0.00842933,1778.9,1778.8,5.57442682]
[1743694940313,0.00842933,1778.9,1778.8,9.50532682]
[1743694940515,0.00842933,1778.9,1778.8,50.30532682]
[1743694940712,5.42758,1779.2,1779.1,1.12459]
[1743694940920,1.12458,1779.2,1779.1,4.33239]
[1743694941422,1.12452,1779.3,1779.2,1.12449]
[1743694941623,2.63542,1779.3,1779.2,1.5112]
[1743694941922,2.63542,1779.3,1779.2,2.63572]
[1743694942316,0.00842933,1779.4,1779.3,1.12446]
[1743694942516,0.00842933,1779.4,1779.3,4.33226]
[1743694942716,0.00842933,1779.4,1779.3,5.56908778]
[1743694943016,0.00842933,1779.4,1779.3,6.26771543]
[1743694943216,0.00842933,1779.4,1779.3,8.76771543]
[1743694944721,0.00842933,1779.4,1779.3,8.76804348]
[1743694945826,0.7209,1780.0,1779.3,13.26579348]
[1743694946029,0.7209,1780.0,1779.9,4.33188]
[1743694946224,0.70120109,1780.0,1779.9,4.33188]
[1743694946428,1.82522109,1780.0,1779.9,4.33188]
[1743694946730,6.84572,1780.1,1780.0,1.12402]
[1743694946922,6.84565,1780.1,1780.0,2.54422]
[1743694947319,1.4207,1780.1,1780.0,2.54422]
[1743694948229,0.6913,1780.3,1780.2,1.12389]
[1743694948420,1.4791,1780.4,1780.3,1.12383]
[1743694948617,1.4791,1780.4,1780.3,2.62573]
[1743694949222,2.60287,1780.4,1780.3,2.62573]
[1743694949830,2.60287,1780.4,1780.3,1.5019]
[1743694950134,1.4791,1780.4,1780.3,2.62573]
[1743694950429,2.60287,1780.4,1780.3,2.62573]
[1743694951128,1.4791,1780.4,1780.3,2.62573]
[1743694951329,2.60287,1780.4,1780.3,1.5019]
[1743694951627,11.08755,1780.4,1780.0,3.2078]
[1743694951825,1.12395,1780.2,1780.1,1.12394]
[1743694952232,2.53985,1780.2,1780.1,1.12394]
[1743694952730,5.42274,1780.5,1780.4,1.12373]
[1743694953032,2.53964,1780.5,1780.4,4.33153]
[1743694953328,1.4159,1780.5,1780.4,45.13153]
[1743694954433,2.5396,1780.5,1780.4,45.13153]
[1743694954825,2.5396,1780.5,1780.4,44.0078]
[1743694955029,2.5396,1780.5,1780.4,40.8]
[1743694955231,0.7011,1780.6,1780.4,3.2078]
[1743694955533,1.12364,1780.6,1780.4,3.2078]
[1743694955734,1.12364,1780.6,1780.5,41.9237]
[1743694955928,3.25373,1780.7,1780.5,43.4366]
[1743694956131,7.55173,1780.7,1780.6,3.2078]
[1743694956324,1.12364,1780.6,1780.5,40.8]
[1743694956525,1.1237,1780.5,1780.4,4.7207]
[1743694956731,1.3903,1780.6,1780.4,5.84446]
[1743694956925,1.1237,1780.5,1780.4,4.7207]
[1743694957227,1.1237,1780.5,1780.4,3.2078]
[1743694958221,1.1237,1780.5,1780.0,1.12398]
[1743694958222,1.12394,1780.2,1780.0,4.6103]
[1743694958421,4.297,1780.3,1780.1,1.12395]
[1743694958625,5.42083,1780.3,1780.2,3.2078]
[1743694959128,6.91103,1780.3,1780.2,3.2078]
[1743694963735,1.12389,1780.2,1780.1,40.8]
[1743694963936,2.64129,1780.2,1780.1,40.8]
[1743694964131,1.12395,1780.1,1780.0,3.2078]
[1743694964435,2.64135,1780.1,1780.0,3.2078]
[1743694964636,2.64135,1780.1,1780.0,45.13182]
[1743694964831,1.5174,1780.1,1780.0,45.13171]
[1743694965237,1.12383,1780.2,1780.0,45.13171]
[1743694965431,1.12383,1780.2,1780.1,1.4433]
[1743694965637,1.12383,1780.2,1780.1,2.56714]
[1743694965939,1.12384,1780.1,1780.0,44.0078]
[1743694967237,5.41884,1780.1,1780.0,44.0078]
[1743694968237,5.41884,1780.1,1780.0,45.3913]
[1743694968435,1.5174,1780.2,1780.0,45.3913]